fUST/lending_fUST_20250430
["ID","MTS","AMOUNT","RATE_DAILY","PERIOD"]
[359376829,1745961041432,-299.69,0.00027397,2]
[359376830,1745961041441,-450.22,0.00027397,2]
[359376831,1745961041451,-400.0,0.00027397,2]
[359376832,1745961041461,-400.0,0.00027397,2]
[359376833,1745961041470,-400.0,0.00027397,2]
[359376834,1745961041479,-1947.74,0.00027397,2]
[359376835,1745961041489,-1414.32,0.00027397,2]
[359376836,1745961041499,-400.0,0.00027397,2]
[359376837,1745961041508,-400.0,0.00027397,2]
[359376838,1745961041517,-400.0,0.00027397,2]
[359376839,1745961041526,-2844.26,0.00027397,2]
[359376840,1745961041535,-347.26776463,0.00027397,2]
[359376841,1745961041544,-400.0,0.00027397,2]
[359376842,1745961041553,-400.0,0.00027397,2]
[359376843,1745961041563,-400.0,0.00027397,2]
[359376844,1745961041572,-400.0,0.00027397,2]
[359376845,1745961041581,-400.0,0.00027397,2]
[359376846,1745961041591,-960.14,0.00027397,2]
[359376847,1745961041600,-400.0,0.00027397,2]
[359376848,1745961041609,-284.51985272,0.00027397,2]
[359376849,1745961041619,-151.40692,0.00027397,7]
[359376850,1745961041628,-400.0,0.00027397,2]
[359376851,1745961041637,-400.0,0.00027397,2]
[359376852,1745961041649,-400.0,0.00027397,2]
[359376853,1745961041661,-400.0,0.00027397,2]
[359376854,1745961041670,-400.0,0.00027397,2]
[359376855,1745961041679,-400.0,0.00027397,2]
[359376856,1745961041689,-400.0,0.00027397,2]
[359376857,1745961041699,-276.16054013,0.00027397,2]
[359376858,1745961041708,-400.0,0.00027397,2]
[359376859,1745961041718,-400.0,0.00027397,2]
[359376860,1745961041728,-400.0,0.00027397,2]
[359376861,1745961041738,-400.0,0.00027397,2]
[359376862,1745961041749,-400.0,0.00027397,2]
[359376863,1745961041759,-496.02,0.00027397,2]
[359376864,1745961041767,-244.75270297,0.00027397,2]
[359376865,1745961041777,-400.0,0.00027397,2]
[359376866,1745961041786,-400.0,0.00027397,2]
[359376867,1745961041796,-178.06321833,0.00027397,2]
[359376868,1745961041805,-413.75989016,0.00027397,2]
[359376869,1745961041815,-400.0,0.00027397,2]
[359376870,1745961041826,-417.32,0.00027397,2]
[359376871,1745961041836,-400.0,0.00027397,2]
[359376872,1745961041846,-400.0,0.00027397,2]
[359376873,1745961041856,-761.97,0.00027397,2]
[359376874,1745961041865,-400.0,0.00027397,2]
[359376875,1745961041875,-411.15,0.00027397,2]
[359376876,1745961041885,-400.0,0.00027397,2]
[359376877,1745961041894,-400.0,0.00027397,2]
[359376878,1745961041903,-852.33,0.00027397,2]
[359376879,1745961041913,-400.0,0.00027397,2]
[359376880,1745961041923,-400.0,0.00027397,2]
[359376881,1745961041932,-400.0,0.00027397,2]
[359376882,1745961041943,-400.0,0.00027397,2]
[359376883,1745961041953,-400.0,0.00027397,2]
[359376884,1745961041963,-400.0,0.00027397,2]
[359376885,1745961041974,-400.0,0.00027397,2]
[359376886,1745961041984,-400.0,0.00027397,2]
[359376887,1745961041994,-299.98892999,0.00027397,2]
[359376888,1745961042003,-1701.87,0.00027397,2]
[359376889,1745961042012,-400.0,0.00027397,2]
[359376890,1745961042022,-400.0,0.00027397,2]
[359376891,1745961042031,-400.0,0.00027397,2]
[359376892,1745961042040,-837.48,0.00027397,2]
[359376893,1745961042049,-400.0,0.00027397,2]
[359376894,1745961042059,-975.62,0.00027397,2]
[359376895,1745961042068,-887.97,0.00027397,2]
[359376896,1745961042078,-866.8,0.00027397,2]
[359376897,1745961042087,-750.5,0.00027397,2]
[359376898,1745961042097,-418.03,0.00027397,2]
[359376899,1745961042106,-400.0,0.00027397,2]
[359376900,1745961042116,-400.0,0.00027397,2]
[359376901,1745961042126,-400.0,0.00027397,2]
[359376902,1745961042135,-400.0,0.00027397,2]
[359376903,1745961042145,-400.0,0.00027397,2]
[359376904,1745961042154,-400.0,0.00027397,2]
[359376905,1745961042163,-400.0,0.00027397,2]
[359376906,1745961042172,-814.71,0.00027397,2]
[359376907,1745961042181,-400.0,0.00027397,2]
[359376908,1745961042190,-400.0,0.00027397,2]
[359376909,1745961042199,-1293.81,0.00027397,2]
[359376910,1745961042346,-400.0,0.00027397,2]
[359376911,1745961042356,-480.98,0.00027397,2]
[359376912,1745961042365,-151.0,0.00027397,7]
[359376913,1745961042376,-254.436626,0.00027397,7]
[359376914,1745961042385,-400.0,0.00027397,2]
[359376915,1745961042395,-1104.96,0.00027397,2]
[359376916,1745961042405,-151.0,0.00027397,2]
[359376917,1745961042415,-1541.99894271,0.00027419,2]
[359376918,1745961042426,-400.0,0.00027452,2]
[359376919,1745961042435,-561.8,0.00027452,2]
[359376920,1745961042445,-400.0,0.00027452,2]
[359376921,1745961042455,-400.0,0.00027452,2]
[359376922,1745961042465,-796.38,0.00027452,2]
[359376923,1745961042474,-400.0,0.00027452,2]
[359376924,1745961042483,-400.0,0.00027452,2]
[359376925,1745961042493,-400.0,0.00027452,2]
[359376927,1745961042502,-3667.79,0.00027452,2]
[359376928,1745961042511,-204.91946607,0.00027452,2]
[359376929,1745961042521,-151.0,0.000275,13]
[359376930,1745961042530,-151.0,0.000275,16]
[359376931,1745961042539,-151.0,0.000276,11]
[359376932,1745961042548,-528.77807819,0.00027661,2]
[359376933,1745961042558,-589.08980823,0.0002767,2]
[359376934,1745961042567,-160.69180635,0.0002767,2]
[359376935,1745961042577,-321.36730412,0.0002767,2]
[359376936,1745961042586,-500.0,0.0002767,2]
[359376938,1745961042595,-469.17840125,0.0002767,2]
[359376939,1745961042604,-400.0,0.00027671,2]
[359376940,1745961042613,-518.73505805,0.00027671,2]
[359376941,1745961042623,-400.0,0.00027671,2]
[359376942,1745961042633,-302.82890865,0.00027671,2]
[359376943,1745961042642,-400.0,0.00027671,2]
[359376944,1745961042653,-400.0,0.00027671,2]
[359376945,1745961042664,-400.0,0.00027671,2]
[359376946,1745961042673,-400.0,0.00027671,2]
[359376947,1745961042682,-400.0,0.00027671,2]
[359376948,1745961042692,-500.0,0.00027671,2]
[359376949,1745961042701,-400.0,0.00027671,2]
[359376950,1745961042711,-400.0,0.00027671,2]
[359376952,1745961042720,-400.0,0.00027671,2]
[359376953,1745961042730,-400.0,0.00027671,2]
[359376954,1745961042739,-400.0,0.00027671,2]
[359376955,1745961042748,-400.0,0.00027671,2]
[359376956,1745961042757,-400.0,0.00027671,2]
[359376957,1745961042766,-200.0,0.00027671,2]
[359376958,1745961042776,-400.0,0.00027671,2]
[359376959,1745961042785,-400.0,0.00027671,2]
[359376960,1745961042794,-400.0,0.00027671,2]
[359376961,1745961042803,-400.0,0.00027671,2]
[359376962,1745961042813,-286.69599846,0.00027671,2]
[359376963,1745961042822,-400.0,0.00027671,2]
[359376964,1745961042832,-200.0,0.00027671,2]
[359376966,1745961042841,-400.0,0.00027671,2]
[359376967,1745961042851,-200.0,0.00027671,2]
[359376968,1745961042861,-400.0,0.00027671,2]
[359376970,1745961042871,-400.0,0.00027671,2]
[359376972,1745961042880,-400.0,0.00027671,2]
[359376974,1745961042889,-400.0,0.00027671,2]
[359376976,1745961042898,-319.844653,0.00027671,2]
[359376978,1745961042908,-200.0,0.00027671,2]
[359376980,1745961042917,-400.0,0.00027671,2]
[359376981,1745961042926,-400.0,0.00027671,2]
[359376982,1745961042935,-400.0,0.00027671,2]
[359376984,1745961042944,-400.0,0.00027671,2]
[359376985,1745961042953,-400.0,0.00027671,2]
[359376987,1745961042962,-400.0,0.00027671,2]
[359376989,1745961042972,-400.0,0.00027671,2]
[359376991,1745961042981,-400.0,0.00027671,2]
[359376992,1745961042990,-471.12,0.00027671,2]
[359376994,1745961043000,-400.0,0.00027671,2]
[359376996,1745961043009,-400.0,0.00027671,2]
[359376997,1745961043018,-310.52734636,0.00027671,2]
[359376998,1745961043027,-200.0,0.00027671,2]
[359376999,1745961043037,-400.0,0.00027671,2]
[359377000,1745961043046,-400.0,0.00027671,2]
[359377002,1745961043055,-400.0,0.00027671,2]
[359377004,1745961043064,-200.0,0.00027671,2]
[359377006,1745961043073,-400.0,0.00027671,2]
[359377008,1745961043082,-400.0,0.00027671,2]
[359377010,1745961043091,-400.0,0.00027671,2]
[359377012,1745961043101,-400.0,0.00027671,2]
[359377014,1745961043110,-400.0,0.00027671,2]
[359377016,1745961043120,-151.0,0.00027671,7]
[359377018,1745961043129,-245.38420568,0.00027671,2]
[359377020,1745961043139,-200.0,0.00027671,2]
[359377022,1745961043148,-400.0,0.00027671,2]
[359377024,1745961043157,-200.0,0.00027671,2]
[359377026,1745961043166,-400.0,0.00027671,2]
[359377028,1745961043176,-400.0,0.00027671,2]
[359377030,1745961043185,-400.0,0.00027671,2]
[359377032,1745961043194,-200.0,0.00027671,2]
[359377034,1745961043204,-151.0,0.00027671,7]
[359377035,1745961043213,-200.0,0.00027671,2]
[359377036,1745961043222,-400.0,0.00027671,2]
[359377037,1745961043232,-200.0,0.00027671,2]
[359377039,1745961043241,-209.15203663,0.00027671,2]
[359377040,1745961043249,-400.0,0.00027671,2]
[359377041,1745961043259,-400.0,0.00027671,2]
[359377042,1745961043268,-300.0,0.00027671,2]
[359377043,1745961043278,-200.0,0.00027671,2]
[359377044,1745961043287,-400.0,0.00027671,2]
[359377045,1745961043297,-400.0,0.00027671,2]
[359377046,1745961043306,-151.0,0.00027671,7]
[359377047,1745961043316,-200.0,0.00027671,2]
[359377048,1745961043325,-400.0,0.00027671,2]
[359377049,1745961043335,-400.0,0.00027671,2]
[359377050,1745961043344,-1254.91,0.00027671,2]
[359377051,1745961043353,-400.0,0.00027671,2]
[359377052,1745961043363,-289.92003481,0.00027671,2]
[359377053,1745961043373,-200.0,0.00027671,2]
[359377054,1745961043382,-200.0,0.00027671,2]
[359377055,1745961043391,-400.0,0.00027671,2]
[359377056,1745961043401,-400.0,0.00027671,2]
[359377057,1745961043411,-321.64769477,0.00027671,2]
[359377058,1745961043421,-400.0,0.00027671,2]
[359377059,1745961043431,-400.0,0.00027671,2]
[359377060,1745961043441,-400.0,0.00027671,2]
[359377061,1745961043451,-400.0,0.00027671,2]
[359377062,1745961043460,-151.0,0.00027671,7]
[359377063,1745961043470,-400.0,0.00027671,2]
[359377064,1745961043479,-400.0,0.00027671,2]
[359377065,1745961043488,-490.14,0.00027671,2]
[359377066,1745961043497,-552.07,0.00027671,2]
[359377067,1745961043506,-400.0,0.00027671,2]
[359377068,1745961043515,-1124.71,0.00027671,2]
[359377069,1745961043525,-200.0,0.00027671,2]
[359377070,1745961043534,-400.0,0.00027671,2]
[359377071,1745961043543,-173.06862947,0.00027671,2]
[359377072,1745961043561,-226.93137053,0.00027671,2]
[359377073,1745961043571,-1301.21,0.00027671,2]
[359377074,1745961043580,-200.0,0.00027671,2]
[359377075,1745961043590,-400.0,0.00027671,2]
[359377076,1745961043599,-200.0,0.00027671,2]
[359377077,1745961043609,-400.0,0.00027671,2]
[359377078,1745961043618,-400.0,0.00027671,2]
[359377079,1745961043628,-200.0,0.00027671,2]
[359377080,1745961043637,-400.0,0.00027671,2]
[359377081,1745961043646,-511.74798856,0.00027671,2]
[359377082,1745961043657,-400.0,0.00027671,2]
[359377083,1745961043667,-450.22,0.00027671,2]
[359377084,1745961043677,-400.0,0.00027671,2]
[359377085,1745961043686,-400.0,0.00027671,2]
[359377086,1745961043696,-200.0,0.00027671,2]
[359377087,1745961043706,-1947.74,0.00027671,2]
[359377088,1745961043715,-1414.32,0.00027671,2]
[359377089,1745961043725,-400.0,0.00027671,2]
[359377090,1745961043737,-200.0,0.00027671,2]
[359377091,1745961043748,-400.0,0.00027671,2]
[359377092,1745961043758,-1423.83698551,0.00027671,2]
[359377107,1745961046013,-3611.30698393,0.000269,7]
[359377109,1745961046022,-3611.30698392,0.00027383,7]
[359377111,1745961046031,-400.0,0.00027397,2]
[359377112,1745961046040,-400.0,0.00027397,2]
[359377114,1745961046050,-400.0,0.00027397,2]
[359377115,1745961046059,-400.0,0.00027452,2]
[359377117,1745961046069,-1420.42301449,0.00027671,2]
[359377118,1745961046078,-200.0,0.00027671,2]
[359377119,1745961046087,-7.18309475,0.00027671,2]
[359377120,1745961046098,-192.81690525,0.00027671,2]
[359377121,1745961046107,-200.0,0.00027671,2]
[359377122,1745961046116,-203.85694911,0.00027671,2]
[359377123,1745961046126,-200.0,0.00027671,2]
[359377124,1745961046135,-960.14,0.00027671,2]
[359377125,1745961046144,-204.63238144,0.00027671,2]
[359377126,1745961046153,-400.0,0.00027671,2]
[359377127,1745961046162,-185.419669,0.00027671,7]
[359377128,1745961046171,-400.0,0.00027671,2]
[359377129,1745961046180,-400.0,0.00027671,2]
[359377130,1745961046189,-206.8498695,0.00027671,2]
[359377131,1745961046200,-93.1501305,0.00027671,2]
[359377132,1745961046210,-400.0,0.00027671,2]
[359377133,1745961046219,-200.0,0.00027671,2]
[359377134,1745961046229,-288.32647478,0.00027671,2]
[359377135,1745961046238,-185.419669,0.00027671,7]
[359377136,1745961046249,-200.0,0.00027671,2]
[359377137,1745961046258,-34.31831273,0.00027671,2]
[359377138,1745961046269,-365.68168727,0.00027671,2]
[359377139,1745961046278,-400.0,0.00027671,2]
[359377140,1745961046288,-400.0,0.00027671,2]
[359377141,1745961046297,-197.67568843,0.00027671,2]
[359377142,1745961046308,-202.32431157,0.00027671,2]
[359377143,1745961046318,-242.48485099,0.00027671,2]
[359377144,1745961046329,-253.53514901,0.00027671,2]
[359377145,1745961046338,-276.549609,0.00027671,7]
[359377146,1745961046347,-200.0,0.00027671,2]
[359377147,1745961046356,-400.0,0.00027671,2]
[359377148,1745961046366,-276.549609,0.00027671,7]
[359377149,1745961046375,-400.0,0.00027671,2]
[359377150,1745961046385,-236.41559443,0.00027671,2]
[359377155,1745961219312,3000.0,0.00027397,30]
[359377158,1745961305392,-152.81425118,0.00018585,2]
[359377260,1745962236279,-4543.9919705,0.00025236,2]
[359377268,1745962236792,-250.0,0.00025534,2]
[359377269,1745962236802,-234.8226608,0.00025634,2]
[359377270,1745962236811,-428.705296,0.00025839,2]
[359377271,1745962236821,-1327.13313702,0.00025883,2]
[359377272,1745962236830,-1200.0,0.00025945,2]
[359377273,1745962236840,-2431.68539692,0.00025946,2]
[359377274,1745962236849,-300.0,0.00025981,2]
[359377275,1745962236859,-300.0,0.00025981,2]
[359377276,1745962236868,-300.0,0.00025981,2]
[359377277,1745962236878,-300.0,0.00025981,2]
[359377278,1745962236887,-50000.0,0.00025982,2]
[359377279,1745962236896,-289.562646,0.00025983,2]
[359377280,1745962236906,-3854.0606352,0.00025983,2]
[359377281,1745962236915,-172.646831,0.00025983,2]
[359377282,1745962236924,-20816.8596845,0.00025983,2]
[359377283,1745962236934,-500.0,0.00026848,2]
[359377284,1745962236943,-500.0,0.00026848,2]
[359377285,1745962236953,-500.0,0.00026848,2]
[359377286,1745962236962,-500.0,0.00026848,2]
[359377287,1745962236972,-270.33155416,0.00026848,2]
[359377307,1745962238401,-229.66844584,0.00026848,2]
[359377308,1745962238411,-500.0,0.00026848,2]
[359377309,1745962238421,-500.0,0.00026848,2]
[359377310,1745962238430,-316.95432897,0.00026848,2]
[359377311,1745962238439,-500.0,0.00026848,2]
[359377312,1745962238449,-500.0,0.00026848,2]
[359377313,1745962238459,-177.84343487,0.00026848,2]
[359377314,1745962238470,-116.29638967,0.00026848,2]
[359377315,1745962238479,-500.0,0.00026848,2]
[359377316,1745962238489,-419.16963543,0.00026848,2]
[359377317,1745962238499,-223.7024041,0.00026848,2]
[359377318,1745962238509,-500.0,0.00026848,2]
[359377319,1745962238518,-240.8315708,0.00026848,2]
[359377320,1745962238542,-259.1684292,0.00026848,2]
[359377321,1745962238552,-500.0,0.00026848,2]
[359377322,1745962238561,-500.0,0.00026848,2]
[359377323,1745962238571,-500.0,0.00026848,2]
[359377324,1745962238580,-393.83325533,0.00026848,2]
[359377325,1745962238592,-106.16674467,0.00026848,2]
[359377326,1745962238602,-500.0,0.00026848,2]
[359377327,1745962238611,-402.97311862,0.00026848,2]
[359377328,1745962238623,-97.02688138,0.00026848,2]
[359377329,1745962238633,-414.06908034,0.00026848,2]
[359377330,1745962238646,-85.93091966,0.00026848,2]
[359377331,1745962238655,-500.0,0.00026848,2]
[359377332,1745962238665,-9.05312928,0.00026848,2]
[359377333,1745962238678,-490.94687072,0.00026848,2]
[359377334,1745962238687,-500.0,0.00026848,2]
[359377335,1745962238698,-500.0,0.00026848,2]
[359377336,1745962238708,-500.0,0.00026848,2]
[359377337,1745962238722,-500.0,0.00026848,2]
[359377338,1745962238732,-500.0,0.00026848,2]
[359377339,1745962238741,-500.0,0.00026848,2]
[359377340,1745962238751,-500.0,0.00026848,2]
[359377341,1745962238760,-2377.01393198,0.000269,7]
[359377342,1745962238772,-1235.39176935,0.000269,7]
[359377343,1745962238781,-397.89386563,0.00027273,2]
[359377344,1745962238798,-218.90571147,0.00027273,2]
[359377345,1745962238807,-616.79957708,0.00027279,2]
[359377346,1745962238817,-616.79957708,0.00027285,2]
[359377347,1745962238827,-616.79957708,0.00027291,2]
[359377348,1745962238836,-616.79957708,0.00027297,2]
[359377349,1745962238846,-396.58355865,0.00027337,2]
[359377350,1745962238855,-3167.31242156,0.00027347,2]
[359377364,1745962240558,-1469.99999989,0.00027347,2]
[359377365,1745962240570,-1042.49220142,0.00027347,2]
[359377366,1745962240582,-3603.6,0.00027347,2]
[359377415,1745962243719,-1500.53791103,0.00027347,2]
[359377416,1745962243729,-500.0,0.00027373,2]
[359377417,1745962243739,-526.19308115,0.00027373,2]
[359377418,1745962243749,-500.0,0.00027373,2]
[359377419,1745962243759,-500.0,0.00027373,2]
[359377420,1745962243768,-500.0,0.00027373,2]
[359377421,1745962243778,-500.0,0.00027373,2]
[359377422,1745962243788,-500.0,0.00027373,2]
[359377423,1745962243798,-500.0,0.00027373,2]
[359377424,1745962243807,-500.0,0.00027373,2]
[359377425,1745962243817,-500.0,0.00027373,2]
[359377426,1745962243827,-500.0,0.00027373,2]
[359377427,1745962243836,-500.0,0.00027373,2]
[359377429,1745962243845,-500.0,0.00027373,2]
[359377431,1745962243854,-500.0,0.00027373,2]
[359377433,1745962243864,-568.03491784,0.00027373,2]
[359377434,1745962243874,-639.18897739,0.00027373,2]
[359377435,1745962243883,-500.0,0.00027373,2]
[359377436,1745962243892,-311.48291134,0.00027373,2]
[359377438,1745962243902,-500.0,0.00027373,2]
[359377439,1745962243911,-500.0,0.00027373,2]
[359377440,1745962243920,-500.0,0.00027373,2]
[359377441,1745962243930,-500.0,0.00027373,2]
[359377442,1745962243940,-500.0,0.00027373,2]
[359377443,1745962243950,-300.0,0.00027373,2]
[359377444,1745962243959,-500.0,0.00027373,2]
[359377445,1745962243969,-500.0,0.00027373,2]
[359377446,1745962243979,-278.96022042,0.00027373,2]
[359377447,1745962243988,-3612.40570112,0.00027383,7]
[359377448,1745962243998,-2776.08491055,0.00027387,2]
[359377449,1745962244007,-204.49516288,0.00027387,2]
[359377450,1745962244017,-550.06,0.00027387,3]
[359377451,1745962244026,-183.36,0.00027387,3]
[359377452,1745962244036,-550.08,0.00027387,3]
[359377453,1745962244046,-296.3392761,0.00027396,2]
[359377454,1745962244056,-471.60088241,0.00027396,2]
[359377455,1745962244065,-500.0,0.00027396,2]
[359377456,1745962244075,-414.57635848,0.00027396,2]
[359377457,1745962244086,-3612.80651812,0.00027397,2]
[359377458,1745962244099,-916.96352498,0.00027397,3]
[359377459,1745962244109,-151.0,0.00027397,7]
[359377460,1745962244118,-151.0,0.00027397,7]
[359377461,1745962244128,-151.0,0.00027397,7]
[359377462,1745962244139,-151.0,0.00027397,7]
[359377463,1745962244149,-500.0,0.00027397,2]
[359377464,1745962244160,-400.0,0.00027397,2]
[359377465,1745962244171,-400.0,0.00027397,2]
[359377466,1745962244181,-400.0,0.00027397,2]
[359377467,1745962244191,-215.53201017,0.00027397,2]
[359377468,1745962244201,-400.0,0.00027397,2]
[359377469,1745962244211,-351.19641911,0.00027397,2]
[359377470,1745962244221,-500.0,0.00027397,2]
[359377471,1745962244230,-500.0,0.00027397,2]
[359377472,1745962244240,-500.0,0.00027397,2]
[359377473,1745962244249,-479.8304134,0.00027397,2]
[359377474,1745962244259,-187.6220699,0.00027397,2]
[359377475,1745962244269,-400.0,0.00027397,2]
[359377476,1745962244278,-400.0,0.00027397,2]
[359377477,1745962244288,-400.0,0.00027397,2]
[359377478,1745962244299,-158.5,0.00027397,2]
[359377479,1745962244309,-400.0,0.00027397,2]
[359377480,1745962244320,-400.0,0.00027397,2]
[359377481,1745962244330,-214.590534,0.00027397,7]
[359377482,1745962244340,-400.0,0.00027397,2]
[359377483,1745962244349,-151.0,0.00027397,7]
[359377484,1745962244510,-400.0,0.00027397,2]
[359377485,1745962244521,-327.05892748,0.00027397,2]
[359377486,1745962244531,-400.0,0.00027397,2]
[359377487,1745962244541,-400.0,0.00027397,2]
[359377488,1745962244551,-400.0,0.00027397,2]
[359377489,1745962244561,-300.0,0.00027397,2]
[359377490,1745962244573,-400.0,0.00027397,2]
[359377491,1745962244582,-400.0,0.00027397,2]
[359377492,1745962244592,-400.0,0.00027397,2]
[359377493,1745962244602,-400.0,0.00027397,2]
[359377494,1745962244612,-500.0,0.00027397,2]
[359377495,1745962244621,-400.0,0.00027397,2]
[359377496,1745962244631,-400.0,0.00027397,2]
[359377497,1745962244640,-400.0,0.00027397,2]
[359377498,1745962244650,-400.0,0.00027397,2]
[359377499,1745962244660,-400.0,0.00027397,2]
[359377500,1745962244670,-400.0,0.00027397,2]
[359377501,1745962244679,-400.0,0.00027397,2]
[359377502,1745962244690,-186.58195735,0.00027397,2]
[359377503,1745962244700,-400.0,0.00027397,2]
[359377504,1745962244709,-151.0,0.00027397,7]
[359377505,1745962244719,-507.49751938,0.00027397,2]
[359377506,1745962244728,-200.0,0.00027397,2]
[359377507,1745962244738,-400.0,0.00027397,2]
[359377508,1745962244748,-400.0,0.00027397,2]
[359377509,1745962244758,-509.74383017,0.00027397,2]
[359377510,1745962244767,-304.47186934,0.00027397,2]
[359377511,1745962244777,-400.0,0.00027397,2]
[359377512,1745962244787,-400.0,0.00027397,2]
[359377513,1745962244796,-400.0,0.00027397,2]
[359377514,1745962244805,-400.0,0.00027397,2]
[359377515,1745962244815,-200.0,0.00027397,2]
[359377516,1745962244824,-151.0,0.00027397,7]
[359377517,1745962244833,-400.0,0.00027397,2]
[359377518,1745962244843,-400.0,0.00027397,2]
[359377519,1745962244852,-400.0,0.00027397,2]
[359377520,1745962244861,-400.0,0.00027397,2]
[359377521,1745962244871,-400.0,0.00027397,2]
[359377522,1745962244880,-200.0,0.00027397,2]
[359377523,1745962244889,-151.0,0.00027397,7]
[359377524,1745962244899,-151.0,0.00027397,7]
[359377525,1745962244908,-400.0,0.00027397,2]
[359377526,1745962244918,-400.0,0.00027397,2]
[359377527,1745962244927,-400.0,0.00027397,2]
[359377528,1745962244937,-400.0,0.00027397,2]
[359377529,1745962244947,-400.0,0.00027397,2]
[359377530,1745962244957,-400.0,0.00027397,2]
[359377531,1745962244967,-400.0,0.00027397,2]
[359377532,1745962244977,-400.0,0.00027397,2]
[359377533,1745962244986,-400.0,0.00027397,2]
[359377534,1745962244996,-400.0,0.00027397,2]
[359377535,1745962245006,-400.0,0.00027397,2]
[359377536,1745962245015,-400.0,0.00027397,2]
[359377537,1745962245025,-400.0,0.00027397,2]
[359377538,1745962245035,-524.631945,0.00027397,7]
[359377539,1745962245044,-400.0,0.00027397,2]
[359377540,1745962245054,-524.631945,0.00027397,7]
[359377541,1745962245064,-400.0,0.00027397,2]
[359377542,1745962245074,-400.0,0.00027397,2]
[359377543,1745962245083,-524.631945,0.00027397,7]
[359377544,1745962245097,-524.631945,0.00027397,7]
[359377545,1745962245107,-400.0,0.00027397,2]
[359377546,1745962245116,-400.0,0.00027397,2]
[359377547,1745962245126,-152.476985,0.00027397,7]
[359377548,1745962245137,-400.0,0.00027397,2]
[359377549,1745962245146,-400.0,0.00027397,2]
[359377550,1745962245155,-152.23160357,0.00027397,2]
[359377551,1745962245166,-400.0,0.00027397,2]
[359377552,1745962245176,-515.64858932,0.00027397,2]
[359377553,1745962245185,-400.0,0.00027397,2]
[359377554,1745962245195,-400.0,0.00027397,2]
[359377555,1745962245206,-400.0,0.00027397,2]
[359377556,1745962245215,-400.0,0.00027397,2]
[359377557,1745962245225,-456.07,0.00027397,2]
[359377558,1745962245234,-400.0,0.00027397,2]
[359377559,1745962245244,-400.0,0.00027397,2]
[359377560,1745962245254,-400.0,0.00027397,2]
[359377561,1745962245264,-400.0,0.00027397,2]
[359377562,1745962245274,-160.0,0.00027397,7]
[359377563,1745962245283,-400.0,0.00027397,2]
[359377564,1745962245293,-400.0,0.00027397,2]
[359377565,1745962245304,-400.0,0.00027397,2]
[359377566,1745962245316,-151.0,0.00027397,7]
[359377567,1745962245327,-151.0,0.00027397,7]
[359377568,1745962245337,-400.0,0.00027397,2]
[359377569,1745962245346,-151.0,0.00027397,7]
[359377570,1745962245355,-151.0,0.00027397,7]
[359377571,1745962245365,-400.0,0.00027397,2]
[359377572,1745962245375,-400.0,0.00027397,2]
[359377573,1745962245384,-518.94818791,0.00027397,2]
[359377574,1745962245394,-400.0,0.00027397,2]
[359377575,1745962245404,-500.0,0.00027397,2]
[359377576,1745962245413,-400.0,0.00027397,2]
[359377577,1745962245423,-400.0,0.00027397,2]
[359377578,1745962245432,-262.69647972,0.00027397,2]